Cogmind - Beta 12 @@@ ROGUE MODE // 2023.12.23 @ 17:26:46 Player: Ischenous Result: Destroyed by G-47 Trooper with Particle Gun Performance ------------- Evolutions (2) 1000 Regions Visited (5) 1000 Robots Destroyed (29) 145 Value Destroyed (839) 839 Prototype IDs (2) 40 Alien Tech Used (0) 0 Bonus (399) 399 TOTAL SCORE: 3423 Bonus ------- Pacifist 200 High Alert Combat Kills 92 Follower Combat Kills 107 Cogmind --------- Core Integrity 0/550 Matter 284/300 Energy 265/265 System Corruption 2% Temperature Cool (9) Movement Walking (190) Ox1 Location -8/Materials Parts ------- > --- POWER (2) -------- Improved Ion Engine > --- PROPULSION (3) --- Aluminum Leg > --- UTILITY (4) ------ Small Storage Unit Advanced Visual Processing Unit Improved Targeting Computer Advanced Targeting Computer > --- WEAPON (2) ------- Assault Rifle Makeshift Sword > --- INVENTORY (8) ---- Light Ion Engine Deuterium Engine Signal Interpreter Reaction Control System Hacking Suite Welding Torch Peak State ------------ > --- POWER ------------ Light Ion Engine Improved Ion Engine > --- PROPULSION ------- Wheel Wheel > --- UTILITY ---------- Small Storage Unit Advanced Visual Processing Unit Improved Targeting Computer Advanced Targeting Computer > --- WEAPON ----------- Beamcaster Makeshift Sword > --- INVENTORY -------- Light Ion Engine Deuterium Engine Signal Interpreter Reaction Control System Hacking Suite Assault Rifle Welding Torch [Rating: 24] Favorites ----------- Power Light Ion Engine Engine Light Ion Engine Power Core Light Nuclear Core Propulsion Wheel Leg Aluminum Leg Wheel Wheel Utility Small Storage Unit Device ECM Suite Storage Small Storage Unit Processor Advanced Targeting Computer Weapon Medium Laser Energy Gun Medium Laser Ballistic Gun Light Assault Rifle Launcher Grenade Launcher Slashing Weapon Makeshift Sword Build | -11 -10 -10 -9 -9 -8 ------- Run | Jun Mat Min Mat Min Mat Slots Evolved 4 | . . . 2 . 2 Power 1 | . . . . . 1 Propulsion 1 | . . . . . 1 Utility 2 | . . . 2 . . Weapon . | . . . . . . Parts Attached 28 | 4 2 1 2 3 16 Power 7 | 1 . . . 1 5 Engine 6 | 1 . . . . 5 Core 1 | . . . . 1 . Reactor . | . . . . . . Propulsion 8 | 1 . 1 . 2 4 Treads . | . . . . . . Leg 3 | . . . . 2 1 Wheel 5 | 1 . 1 . . 3 Hover . | . . . . . . Flight . | . . . . . . Utility 5 | . 2 . 2 . 1 Device 1 | . 1 . . . . Storage 1 | . 1 . . . . Processor 3 | . . . 2 . 1 Hackware . | . . . . . . Protection . | . . . . . . Artifact . | . . . . . . Weapon 8 | 2 . . . . 6 Energy Gun 3 | 1 . . . . 2 Energy Cannon . | . . . . . . Ballistic Gun 3 | 1 . . . . 2 Ballistic Cannon . | . . . . . . Launcher 1 | . . . . . 1 Special Weapon . | . . . . . . Impact Weapon . | . . . . . . Slashing Weapon 1 | . . . . . 1 Piercing Weapon . | . . . . . . Special Melee Weapon . | . . . . . . Unidentified Prototypes . | . . . . . . Corrupted Parts 1 | . . . . . 1 System Corruption 2 | . . . . . 2 Parts Lost 13 | . . . . 1 12 Power 3 | . . . . . 3 Propulsion 6 | . . . . 1 5 Utility 1 | . . . . . 1 Weapon 3 | . . . . . 3 Highest Loss Streak 3 | . . . . 1 3 To Critical Strikes . | . . . . . . Average Slot Usage (%) 90 | . 60 88 100 98 89 Engine 11 | . 14 14 11 1 11 Core 2 | . . . . 9 3 Leg 5 | . . . . 18 7 Wheel 14 | . 14 17 22 1 13 Device 7 | . . 14 11 11 3 Storage 10 | . 3 14 11 11 9 Processor 16 | . . . 22 22 23 Energy Gun 11 | . 14 14 11 11 11 Ballistic Gun 6 | . 14 14 11 11 . Slashing Weapon 2 | . . . . . 5 Naked Turns . | . . . . . . Heaviest Build 22 | 8 15 15 15 15 22 Greatest Support 30 | 10 10 20 20 20 30 Greatest Overweight (x) 5 | . 1 1 . 1 5 Average Overweight (x) . | . . . . . . Largest Inventory Capacity 8 | 5 8 8 8 8 8 Average Capacity 7 | 5 5 8 8 8 8 Most Carried 8 | 5 5 8 8 8 8 Average Carried 6 | 2 3 4 7 7 7 Final Capacity 8 | 5 8 8 8 8 8 Final Carried 8 | 3 3 8 8 8 6 Class Distribution -------------------- 76% | Mutant 23% | Scavenger-Mutant Dominant Class ---------------- Mutant | -10/Materials Mutant | -10/Mines Mutant | -9/Materials Mutant | -9/Mines Mutant | -8/Materials Resources | -11 -10 -10 -9 -9 -8 ----------- Run | Jun Mat Min Mat Min Mat Matter Collected 457 | 92 . 129 10 62 164 Remotely . | . . . . . . Salvage Created 1011 | . . . 90 33 888 Parts 56 | . . . 5 4 47 Haulers Intercepted . | . . . . . . Recyclers Shooed . | . . . . . . Parts Field Recycled . | . . . . . . Retrieved Matter . | . . . . . . Parts Self-Destructed . | . . . . . . Prevented . | . . . . . . Kills | -11 -10 -10 -9 -9 -8 ------- Run | Jun Mat Min Mat Min Mat Combat Hostiles Destroyed 28 | . . . 2 1 25 Melee 3 | . . . . . 3 Guns 25 | . . . 2 1 22 Classes Destroyed 5 | . . . 2 . 3 Worker 1 | . . . . . 1 Swarmer 12 | . . . . . 12 Cutter 1 | . . . . . 1 Grunt 8 | . . . 1 1 6 Sentry 7 | . . . 1 . 6 Best Kill Streak 6 | . . . 1 1 6 Combat Bots Only 6 | . . . 1 1 6 Max Kills in Single Turn 1 | . . . 1 1 1 Gunslinging . | . . . . . . Exploded . | . . . . . . Melee 1 | . . . . . 1 Uniques/NPCs Destroyed . | . . . . . . Combat | -11 -10 -10 -9 -9 -8 -------- Run | Jun Mat Min Mat Min Mat Damage Taken 1600 | . . 46 121 31 1402 Core 602 | . . . 33 14 555 Absorbed by Shields . | . . . . . . Core Remaining (%) 96 | 100 . 100 . 88 . Volleys Fired 114 | . . 7 13 2 92 Largest 2 | . . 2 2 2 2 Hottest 100 | . . 70 70 70 100 Shots Fired 152 | . . 14 26 4 108 Gun 152 | . . 14 26 4 108 Cannon . | . . . . . . Launcher . | . . . . . . Special . | . . . . . . Kinetic 28 | . . 7 13 2 6 Thermal 109 | . . 7 13 2 87 Explosive . | . . . . . . Electromagnetic 15 | . . . . . 15 Robot Hit Streak 23 | . . . 6 6 23 Robot Miss Streak 4 | . . 2 2 . 4 Penetration Max . | . . . . . . Secondary Targets 1 | . . . 1 . . Max Gunslinging Chain 1 | . . . 1 . . Shots Hit Robots 110 | . . . 19 3 88 Core Hits 51 | . . . 7 3 41 Critical Kills . | . . . . . . Critical Parts Destroyed . | . . . . . . Critical Strikes 8 | . . . 2 . 6 Burn 8 | . . . 2 . 6 Melee Attacks 16 | . . . . . 16 Impact . | . . . . . . Slashing 16 | . . . . . 16 Piercing . | . . . . . . Sneak Attacks . | . . . . . . Combat Hostiles . | . . . . . . Follow-up Attacks . | . . . . . . Damage Inflicted 1753 | . . . 201 34 1518 Guns 1393 | . . . 201 34 1158 Cannons . | . . . . . . Explosions . | . . . . . . Melee 360 | . . . . . 360 Ramming . | . . . . . . Kinetic 170 | . . . 90 10 70 Thermal 1083 | . . . 111 24 948 Explosive . | . . . . . . Electromagnetic 140 | . . . . . 140 Impact . | . . . . . . Slashing 360 | . . . . . 360 Piercing . | . . . . . . Highest Corruption 2 | . . . . . 2 Average Corruption 2 | . . . . . 2 Corruption Purged . | . . . . . . Corruption Blocked . | . . . . . . Effects 9 | . . . . . 9 Message Errors 4 | . . . . . 4 Matter Fused 1 | . . . . . 1 Heat Flow Errors 2 | . . . . . 2 Data Loss (major) 1 | . . . . . 1 Misfires 1 | . . . . . 1 Overload Shots . | . . . . . . Overflow Damage . | . . . . . . Projectiles . | . . . . . . Explosions . | . . . . . . Melee . | . . . . . . Knockbacks . | . . . . . . Impact . | . . . . . . Kinetic . | . . . . . . Secondary . | . . . . . . Self-Inflicted Damage . | . . . . . . Shots . | . . . . . . Rammed . | . . . . . . Targets Rammed . | . . . . . . Kicked . | . . . . . . Crushed . | . . . . . . Highest Temperature 287 | . . 100 76 46 287 Average Temperature 79 | . . 54 36 32 89 Received Heat Transfer 552 | . . 6 60 9 477 Effects 3 | . . . . . 3 Energy Bleed 1 | . . . . . 1 Interference 2 | . . . . . 2 Siege Activations . | . . . . . . Robots Corrupted . | . . . . . . Combat Hostiles . | . . . . . . Parts Fried . | . . . . . . Impact Corruptions . | . . . . . . Robots Melted . | . . . . . . Combat Hostiles . | . . . . . . Parts Melted 10 | . . . 1 . 9 Heat Transferred 3515 | . . . 481 74 2960 Parts Sabotaged . | . . . . . . Parts Stolen . | . . . . . . Parts Stripped . | . . . . . . Power Chain Reactions . | . . . . . . Missiles Intercepted . | . . . . . . Alert | -11 -10 -10 -9 -9 -8 ------- Run | Jun Mat Min Mat Min Mat Peak Influence 576 | . . 22 203 128 576 Initial 78 | . . . 8 78 49 Average 184 | . . 13 62 126 331 Maximum Alert Level 2 | . . . 1 . 2 Low Security (%) 60 | 100 100 100 95 100 20 Level 1 16 | . . . 4 . 33 Level 2 22 | . . . . . 46 Level 3 . | . . . . . . Level 4 . | . . . . . . Level 5 . | . . . . . . High Security . | . . . . . . Max Security . | . . . . . . Squads Dispatched 7 | . . . 1 . 6 Investigation 3 | . . . . . 3 Extermination . | . . . . . . Reinforcement 4 | . . . 1 . 3 Assault . | . . . . . . Garrison . | . . . . . . Intercept . | . . . . . . Searches Triggered . | . . . . . . Construction Impeded . | . . . . . . Haulers Reinforced . | . . . . . . Active Scanning Responses . | . . . . . . Cargo Convoy Interrupts . | . . . . . . Stealth | -11 -10 -10 -9 -9 -8 --------- Run | Jun Mat Min Mat Min Mat Distress Signals 3 | . . . . . 3 Communications Jammed . | . . . . . . Distress Signals . | . . . . . . Times Spotted 66 | . . 3 11 3 49 Peak Tracking Total 6 | . . 2 3 3 6 Tactical Retreats 4 | . . 1 . . 3 Traps | -11 -10 -10 -9 -9 -8 ------- Run | Jun Mat Min Mat Min Mat Traps Triggered 2 | . . . . . 2 Indirectly . | . . . . . . Trap Hack Attempts . | . . . . . . Triggered . | . . . . . . Disarmed . | . . . . . . Reprogrammed . | . . . . . . Reused . | . . . . . . Traps Extracted . | . . . . . . Installed . | . . . . . . Triggered . | . . . . . . Machines | -11 -10 -10 -9 -9 -8 ---------- Run | Jun Mat Min Mat Min Mat Machines Disabled 2 | . . . . 1 1 Max in Single Turn 1 | . . . . . 1 Machines Repaired . | . . . . . . Machines Sabotaged . | . . . . . . Overloaded Fab Kills . | . . . . . . Hacking | -11 -10 -10 -9 -9 -8 --------- Run | Jun Mat Min Mat Min Mat Machines Accessed 6 | . . 1 . . 5 Terminals 4 | . . . . . 4 Fabricators . | . . . . . . Repair Stations . | . . . . . . Recycling Units . | . . . . . . Scanalyzers 1 | . . . . . 1 Garrison Access . | . . . . . . Total Hacks 14 | . . 1 . . 13 Successful 11 | . . 1 . . 10 Failed 3 | . . . . . 3 Catastrophic . | . . . . . . Database Lockouts . | . . . . . . Manual 1 | . . . . . 1 Terminals 10 | . . . . . 10 Fabricators . | . . . . . . Repair Stations . | . . . . . . Recycling Units . | . . . . . . Scanalyzers 3 | . . . . . 3 Garrison Access . | . . . . . . Terminal Hacks 10 | . . 1 . . 9 Record 2 | . . . . . 2 Prototype ID Bank 1 | . . . . . 1 Open Door 1 | . . 1 . . . Emergency Access Points 1 | . . . . . 1 Alert Level 2 | . . . . . 2 Dispatch Records 1 | . . . . . 1 Zone Layout 2 | . . . . . 2 Fabricator Hacks . | . . . . . . Repair Station Hacks . | . . . . . . Recycling Unit Hacks . | . . . . . . Scanalyzer 1 | . . . . . 1 Insert Component 1 | . . . . . 1 Garrison Access Hacks . | . . . . . . Unauthorized Hacks . | . . . . . . Terminals . | . . . . . . Fabricators . | . . . . . . Repair Stations . | . . . . . . Recycling Units . | . . . . . . Scanalyzers . | . . . . . . Garrison Access . | . . . . . . Data Cores Recovered . | . . . . . . Used . | . . . . . . Hacking Detections 5 | . . . . . 5 Full Trace Events 1 | . . . . . 1 Feedback Events . | . . . . . . Feedback Blocked . | . . . . . . Robot Schematics Acquired . | . . . . . . Robots Built . | . . . . . . Authchips . | . . . . . . Time . | . . . . . . Total Robot Build Rating . | . . . . . . Part Schematics Acquired . | . . . . . . Parts Built . | . . . . . . Authchips . | . . . . . . Time . | . . . . . . Total Part Build Rating . | . . . . . . Parts Repaired . | . . . . . . Time . | . . . . . . Parts Recycled . | . . . . . . Recycled Matter . | . . . . . . Retrieved Matter . | . . . . . . Retrieved Components . | . . . . . . Parts Scanalyzed 1 | . . . . . 1 Part Schematics Acquired . | . . . . . . Parts Damaged . | . . . . . . Bothacking | -11 -10 -10 -9 -9 -8 ------------ Run | Jun Mat Min Mat Min Mat Used RIF Installer . | . . . . . . Robots Hacked . | . . . . . . Non-combat . | . . . . . . Combat . | . . . . . . Robot Hacks Applied . | . . . . . . Relay Couplers Released . | . . . . . . Fabnet Peak Effective % . | . . . . . . Robots Rewired . | . . . . . . Allies Hacked . | . . . . . . Hacks Repelled . | . . . . . . Allies | -11 -10 -10 -9 -9 -8 -------- Run | Jun Mat Min Mat Min Mat Total Allies 2 | . . 2 . . . Largest Group 2 | . . 2 2 . . Highest-Rated Group 50 | . . 50 50 . . Highest-Rated Ally 31 | . . 31 31 . . Total Orders . | . . . . . . Ally Attacks 26 | . . 2 23 1 . Total Damage 410 | . . 20 343 47 . Kills 7 | . . 1 5 1 . Allies Corrupted . | . . . . . . Allies Melted . | . . . . . . Intel | -11 -10 -10 -9 -9 -8 ------- Run | Jun Mat Min Mat Min Mat Robot Analysis Total . | . . . . . . Derelict Logs Recovered 1 | . . 1 . . . Drone Launches . | . . . . . . Drone Recoveries . | . . . . . . Exploration | -11 -10 -10 -9 -9 -8 ------------- Run | Jun Mat Min Mat Min Mat Turns Passed 1879 | 48 39 462 235 182 913 Spaces Moved 1443 | 47 43 419 170 142 622 Core 4 | 2 . . . . 2 Treads . | . . . . . . Legs 340 | . . . . 130 210 Wheels 1099 | 45 43 419 170 12 410 Hover . | . . . . . . Flight . | . . . . . . Fastest Speed 50 | 50 80 80 80 80 80 Average Speed 93 | 78 83 90 80 118 96 Slowest Speed 300 | 80 95 95 80 190 300 Overloaded Moves . | . . . . . . Propulsion Burnouts . | . . . . . . Robots Hopped . | . . . . . . Cave-ins Triggered . | . . . . . . Exploration Rate (%) 35 | 4 10 74 24 40 59 Regions Visited 5 Branch Regions 2 Pre-discovered Areas . | . . . . . . Known Exits Taken . | . . . . . . Unknown Exits Taken 5 | 1 1 1 1 1 . Scrap Searched 2 | . . 2 . . . Spaces Dug . | . . . . . . Terrain Destroyed . | . . . . . . Melee . | . . . . . . Projectile . | . . . . . . AOE . | . . . . . . Terrain Rammed . | . . . . . . Walls Destroyed . | . . . . . . Machines Disabled . | . . . . . . Actions | -11 -10 -10 -9 -9 -8 --------- Run | Jun Mat Min Mat Min Mat Total 1806 | 57 46 488 245 155 815 Wait 165 | . . 56 59 . 50 Move 1438 | 46 42 418 169 141 622 Hop . | . . . . . . Pick Up 36 | 7 2 6 2 5 14 Fast Attach . | . . . . . . Attach 23 | 4 2 1 2 2 12 Detach . | . . . . . . Swap 5 | . . . . 1 4 Drop 9 | . . . . 4 5 Fire 114 | . . 7 13 2 92 Melee 16 | . . . . . 16 Ram . | . . . . . . Kick . | . . . . . . Crush . | . . . . . . Escape Stasis . | . . . . . . Rewire . | . . . . . . Trap . | . . . . . . Miscellaneous . | . . . . . . Route ------- -11/Junkyard -10/Materials -10/Mines (discovered 2 exits: [*Mat x2]) -9/Materials -9/Mines -8/Materials (discovered 1 exit: [*Fac]) History --------- Turn | Location | Event 29 | -11/Junkyard | Discovered new exit (range 15) 49 | -11/Junkyard | Entered Materials 61 | -10/Materials | Discovered new exit (range 12) 88 | -10/Materials | Entered Mines 310 | -10/Mines | Build established: Mutant 321 | -10/Mines | Met a Derelict who couldn't figure out how to use a Trap Extractor 514 | -10/Mines | Discovered new exit (range 15) 515 | -10/Mines | Learned 2 Materials zone layouts 537 | -10/Mines | Discovered new exit (range 8) 550 | -10/Mines | Entered Materials 550 | -9/Materials | Accompanied by 2 allies 550 | -9/Materials | Evolved 2 slots: Utility x2 555 | -9/Materials | Led the pair of lost Derelicts to an unsafe place 757 | -9/Materials | Discovered new exit (range 7) 785 | -9/Materials | Entered Mines 785 | -9/Mines | Accompanied by 1 ally 834 | -9/Mines | A weapon hastily lodged in a ceiling crevice suddenly fell to the ground 954 | -9/Mines | Discovered new exit (range 7) 967 | -9/Mines | Entered Materials 967 | -8/Materials | Evolved 2 slots: Power x1, Propulsion x1 1350 | -8/Materials | Lost 3 parts (1n1u1w) 1405 | -8/Materials | Lost 3 parts (2p1n) 1696 | -8/Materials | Build established: Scavenger-Mutant 1720 | -8/Materials | Discovered new exit (range 20) 1723 | -8/Materials | Core integrity fell below 50% 1794 | -8/Materials | Core integrity fell below 20% 1880 | -8/Materials | Destroyed by G-47 Trooper with Particle Gun Last Messages --------------- 01795_ System corrupted: Substantial component data lost. 01797_ Lgt. Ion Engine destroyed. 01811_ System corrupted: Heat flow error (+116). 01819_ G-47 Trooper destroyed. 01822_ Acquired 5 matter. 01825_ Overheating: System interference. 01825_ Beamcaster temporarily disabled. 01825_ Beamcaster destroyed. 01840_ U-05 Engineer lays Concrete. 01842_ U-05 Engineer builds a Wall. 01844_ Acquired 10 matter. 01856_ Triggered Alarm Trap. 01856_ An alarm sounds. 01856_ ALERT: Alarm triggered, dispatching investigation squad. 01860_ Wheel destroyed. 01866_ Critical hit (Burn: +37). 01866_ G-47 Trooper destroyed. 01868_ Acquired 9 matter. 01874_ Acquired Aluminum Leg. 01875_ K-01 Serf collects debris. Map ----- +----------------------------------------------------+ | | | | | | | | | | | | | | | ?????????????????????????????????????????????????? | | ?????????????????????????????????????????????????? | | ?????????????????????????????????????????????????? | | ?????????????????????????????????????????????????? | | ?????????????????????????????????????????????????? | | ???#???###??#######??????????????????????????????? | | #### ### ### #####??????????????????????????? | | = # #??????????????????????????? | | /%* % # #??????????????????????????? | | =%= % " #??????????????????????????? | | ####=! #####% % # #??????????????????????????? | | ????????????## ## #??????????????????????????? | | ?????????????# ## #??????????????????????????? | | ?######??????# ## ########???????????????????? | | ?# ####### ###+### #???????????????????? | | ?# !%[ #???????????????????? | | ?# = #???????????????????? | | ?# g=[ #???????????????????? | | ?# ########+########%@ #???????????????????? | | ?######??# #?## ##???????????????????? | | ?????????# #??# ######???????????????? | | ?????????#!* #??# ##"""#???????????????? | | ?????????#%""" """ #??# ##"T"###?????????????? | | ?????????#=""" """ #??# #?????????????? | | ????????## """ """ #??# #?????????????? | | ????????# #??# """ #?????????????? | | ?????#################### """ #?????????##### | | ###### ]## # """ #???????? | | #[ """ ## """"" # #????????"""" | | # """ ## """"" # ! ######## """" | | + """ ## """" !# # """" | | # ## %+=k ! + | | # """ ## = [# * #### # ! | | # ## """ ## #####??# ###### # | | # ## """ ## "T" #??????# #????# #? ! | | | # ##! ## ! #??????# #????# #?###### | | + #####################??????# #????# #??????? | | # #??????????????????????????# ######+####???? | | # #??????????????????????????# % ## #???? | | # #?????????????????????????## ## """#???? | | # ###########################! # ] """#???? | | # # """#???? | | # % + #???? | +----------------------------------------------------+ Best States ------------- Heat Dissipation 31 Energy Generation 19 Energy Capacity 290 Matter Stores 300 Matter Capacity 300 Sight Range 20 Terrain Scan Density 10 ECM Strength 1 Evasion (%) 55 Targeting Accuracy 14 Item Schematics ----------------- None Robot Schematics ------------------ None Fabricated ------------ Nothing Alien Tech Used ----------------- None Achievements -------------- None Challenges ------------ None Game ------ Seed MyomerMakeshiftNanoactuators Manual? 0 Play Time 00:31:45 Cumulative 110.9 hours Start 2023.12.23 @ 16:36:23 End 2023.12.23 @ 17:26:46 Sessions 1 Manual Loads 0 Difficulty Rogue Special Mode None Game No. 100 Rogue 100 Adventurer 0 Explorer 0 Win Type - Total 0 Types 0/0/0/0/0/0/0/0/0 Lore% 35 Gallery% 39 Achievement% 30 Wizard Run 0 Options --------- ASCII 0 Keyboard 0 Movement Arrows Keybinds 0 Fullscreen 1 Font 18/SmallcapsGlow Map View 76x50 Tactical HUD 1 Map Filters NONE Filters NONE Steam 1 RUN: 57623f2b-97a4-4e35-836b-ae8f0b601365